[Event "Titled Tuesday Blitz November 07 Early 2023"]
[White "Matveeva, Olga"]
[Black "Vestby-Ellingsen, Mads"]
[WhiteFideId "24107018"]
[BlackFideId "1520857"]
[WhiteElo "2405"]
[BlackElo "2543"]
[Result "0-1"]
[Round "4"]
[TimeControl "180+1"]
[Date "2023.11.07"]
[WhiteClock "0:00:05"]
[BlackClock "0:01:54"]
[Board "147"]

1. d4 {[%clk 0:03:00]}  d5 {[%clk 0:02:59]} 2. c4 {[%clk 0:03:01]}  c6 {[%clk 0:03:00]} 3. Nf3 {[%clk 0:03:00]}  Nf6 {[%clk 0:03:01]} 4. Qb3 {[%clk 0:03:01]}  dxc4 {[%clk 0:03:01]} 5. Qxc4 {[%clk 0:03:02]}  Bf5 {[%clk 0:03:00]} 6. g3 {[%clk 0:03:03]}  e6 {[%clk 0:03:01]} 7. Bg2 {[%clk 0:03:03]}  Nbd7 {[%clk 0:03:01]} 8. O-O {[%clk 0:03:04]}  Be7 {[%clk 0:03:02]} 9. Nc3 {[%clk 0:03:03]}  O-O {[%clk 0:02:59]} 10. Re1 {[%clk 0:03:04]}  Ne4 {[%clk 0:02:59]} 11. Qb3 {[%clk 0:02:55]}  Qb6 {[%clk 0:02:57]} 12. Nh4 {[%clk 0:02:44]}  Nxc3 {[%clk 0:02:55]} 13. Nxf5 {[%clk 0:02:37]}  exf5 {[%clk 0:02:53]} 14. bxc3 {[%clk 0:02:36]}  Nf6 {[%clk 0:02:53]} 15. Bb2 {[%clk 0:02:17]}  Rfe8 {[%clk 0:02:52]} 16. e3 {[%clk 0:02:00]}  g6 {[%clk 0:02:52]} 17. c4 {[%clk 0:01:57]}  Qxb3 {[%clk 0:02:48]} 18. axb3 {[%clk 0:01:57]}  Bb4 {[%clk 0:02:49]} 19. Red1 {[%clk 0:01:56]}  Ne4 {[%clk 0:02:49]} 20. d5 {[%clk 0:01:40]}  cxd5 {[%clk 0:02:46]} 21. Rxd5 {[%clk 0:01:38]}  b6 {[%clk 0:02:41]} 22. Rd7 {[%clk 0:01:33]}  a5 {[%clk 0:02:40]} 23. Rad1 {[%clk 0:01:22]}  Rab8 {[%clk 0:02:34]} 24. f3 {[%clk 0:01:12]}  Nc5 {[%clk 0:02:32]} 25. Ra7 {[%clk 0:01:00]}  Rbd8 {[%clk 0:02:29]} 26. Rd5 {[%clk 0:00:50]}  Nxb3 {[%clk 0:02:25]} 27. e4 {[%clk 0:00:45]}  fxe4 {[%clk 0:02:14]} 28. fxe4 {[%clk 0:00:45]}  b5 {[%clk 0:02:08]} 29. Rad7 {[%clk 0:00:17]}  Rxd7 {[%clk 0:02:06]} 30. Rxd7 {[%clk 0:00:18]}  bxc4 {[%clk 0:02:06]} 31. Bf6 {[%clk 0:00:16]}  c3 {[%clk 0:02:03]} 32. Rc7 {[%clk 0:00:14]}  Bc5+ {[%clk 0:02:02]} 33. Kf1 {[%clk 0:00:11]}  c2 {[%clk 0:02:02]} 34. Bg5 {[%clk 0:00:11]}  a4 {[%clk 0:01:55]} 35. Ke2 {[%clk 0:00:11]}  c1=Q {[%clk 0:01:53]} 36. Bxc1 {[%clk 0:00:10]}  Nxc1+ {[%clk 0:01:54]} 37. Kd1 {[%clk 0:00:05]}  Nb3 {[%clk 0:01:54]} 0-1


[Site "https://www.chess.com"]

[Event "Titled Tuesday Blitz November 07 Early 2023"]
[White "LiadCuba"]
[Black "Czopor, Maciej"]
[BlackFideId "21805431"]
[WhiteElo "2402"]
[BlackElo "2538"]
[Result "1-0"]
[Round "4"]
[TimeControl "180+1"]
[Date "2023.11.07"]
[WhiteClock "0:00:33"]
[BlackClock "0:00:13"]
[Board "149"]

1. d4 {[%clk 0:02:56]}  a6 {[%clk 0:02:53]} 2. c4 {[%clk 0:02:51]}  b5 {[%clk 0:02:53]} 3. e3 {[%clk 0:02:42]}  bxc4 {[%clk 0:02:53]} 4. Bxc4 {[%clk 0:02:42]}  Bb7 {[%clk 0:02:54]} 5. Nf3 {[%clk 0:02:42]}  Nf6 {[%clk 0:02:54]} 6. O-O {[%clk 0:02:41]}  e6 {[%clk 0:02:54]} 7. Nbd2 {[%clk 0:02:38]}  Be7 {[%clk 0:02:54]} 8. Qe2 {[%clk 0:02:38]}  O-O {[%clk 0:02:54]} 9. b3 {[%clk 0:02:37]}  d6 {[%clk 0:02:55]} 10. Bb2 {[%clk 0:02:37]}  Nbd7 {[%clk 0:02:56]} 11. Rfc1 {[%clk 0:02:31]}  Nb6 {[%clk 0:02:56]} 12. Bd3 {[%clk 0:02:31]}  Re8 {[%clk 0:02:55]} 13. e4 {[%clk 0:02:31]}  Bf8 {[%clk 0:02:53]} 14. Rc2 {[%clk 0:02:25]}  a5 {[%clk 0:02:49]} 15. Rac1 {[%clk 0:02:23]}  Rc8 {[%clk 0:02:45]} 16. Qe3 {[%clk 0:01:56]}  h6 {[%clk 0:02:32]} 17. h3 {[%clk 0:01:38]}  Qd7 {[%clk 0:02:28]} 18. a4 {[%clk 0:01:36]}  d5 {[%clk 0:02:15]} 19. e5 {[%clk 0:01:29]}  Nh7 {[%clk 0:02:15]} 20. Nf1 {[%clk 0:01:12]}  Bb4 {[%clk 0:01:50]} 21. Ng3 {[%clk 0:01:11]}  Nf8 {[%clk 0:01:51]} 22. Nh5 {[%clk 0:01:10]}  Ng6 {[%clk 0:01:51]} 23. Bxg6 {[%clk 0:01:00]}  fxg6 {[%clk 0:01:52]} 24. Nf4 {[%clk 0:01:01]}  Qf7 {[%clk 0:01:52]} 25. Nd3 {[%clk 0:00:58]}  g5 {[%clk 0:01:07]} 26. Nxb4 {[%clk 0:00:48]}  axb4 {[%clk 0:01:07]} 27. Ne1 {[%clk 0:00:47]}  Ba6 {[%clk 0:00:58]} 28. Rc6 {[%clk 0:00:46]}  Qf5 {[%clk 0:00:53]} 29. a5 {[%clk 0:00:42]}  Bb7 {[%clk 0:00:52]} 30. Rxc7 {[%clk 0:00:34]}  Rxc7 {[%clk 0:00:41]} 31. Rxc7 {[%clk 0:00:35]}  Na8 {[%clk 0:00:14]} 32. Rxb7 {[%clk 0:00:34]}  Qb1 {[%clk 0:00:13]} 33. Qc1 {[%clk 0:00:33]} 1-0


[Site "https://www.chess.com"]

[Event "Titled Tuesday Blitz November 07 Early 2023"]
[White "Hirneise, Jens"]
[Black "Goldin, Roman"]
[WhiteFideId "24614734"]
[BlackFideId "2803860"]
[WhiteElo "2536"]
[BlackElo "2398"]
[Result "1-0"]
[Round "4"]
[TimeControl "180+1"]
[Date "2023.11.07"]
[WhiteClock "0:00:07"]
[BlackClock "0:00:00"]
[Board "150"]

1. g3 {[%clk 0:03:00]}  d5 {[%clk 0:02:58]} 2. Bg2 {[%clk 0:03:01]}  e5 {[%clk 0:02:58]} 3. c4 {[%clk 0:03:01]}  d4 {[%clk 0:02:57]} 4. d3 {[%clk 0:03:01]}  Nf6 {[%clk 0:02:57]} 5. Nf3 {[%clk 0:02:56]}  Nc6 {[%clk 0:02:56]} 6. O-O {[%clk 0:02:52]}  Be7 {[%clk 0:02:50]} 7. e3 {[%clk 0:02:50]}  O-O {[%clk 0:02:48]} 8. exd4 {[%clk 0:02:47]}  exd4 {[%clk 0:02:48]} 9. h3 {[%clk 0:02:46]}  Bf5 {[%clk 0:02:43]} 10. a3 {[%clk 0:02:46]}  a5 {[%clk 0:02:41]} 11. Bg5 {[%clk 0:02:44]}  h6 {[%clk 0:02:35]} 12. Bxf6 {[%clk 0:02:38]}  Bxf6 {[%clk 0:02:35]} 13. Re1 {[%clk 0:02:29]}  a4 {[%clk 0:02:35]} 14. b4 {[%clk 0:02:24]}  axb3 {[%clk 0:02:34]} 15. Qxb3 {[%clk 0:02:24]}  Qd7 {[%clk 0:02:26]} 16. Kh2 {[%clk 0:02:13]}  Ra6 {[%clk 0:02:09]} 17. Nbd2 {[%clk 0:02:09]}  Rfa8 {[%clk 0:01:42]} 18. Ng1 {[%clk 0:02:04]}  Rb6 {[%clk 0:01:22]} 19. Qc2 {[%clk 0:01:57]}  Be7 {[%clk 0:01:13]} 20. Be4 {[%clk 0:01:24]}  Rxa3 {[%clk 0:01:03]} 21. Rxa3 {[%clk 0:01:23]}  Bxa3 {[%clk 0:01:02]} 22. Qa4 {[%clk 0:01:07]}  Bb4 {[%clk 0:00:56]} 23. Ngf3 {[%clk 0:00:53]}  Bxe4 {[%clk 0:00:38]} 24. Rxe4 {[%clk 0:00:50]}  Qf5 {[%clk 0:00:37]} 25. Qa8+ {[%clk 0:00:32]}  Kh7 {[%clk 0:00:36]} 26. Re8 {[%clk 0:00:30]}  Qxd3 {[%clk 0:00:18]} 27. Rh8+ {[%clk 0:00:20]}  Kg6 {[%clk 0:00:18]} 28. Nh4+ {[%clk 0:00:21]}  Kf6 {[%clk 0:00:17]} 29. Ndf3 {[%clk 0:00:16]}  Qe2 {[%clk 0:00:10]} 30. Qc8 {[%clk 0:00:14]}  Qxf2+ {[%clk 0:00:09]} 31. Kh1 {[%clk 0:00:15]}  Ne7 {[%clk 0:00:06]} 32. Qg4 {[%clk 0:00:11]}  Qf1+ {[%clk 0:00:04]} 33. Kh2 {[%clk 0:00:07]}  Qf2+ {[%clk 0:00:00]} 34. Ng2 {[%clk 0:00:07]} 1-0


[Site "https://www.chess.com"]

[Event "Titled Tuesday Blitz November 07 Early 2023"]
[White "Goltseva, Ekaterina"]
[Black "Dmitrenko, Viktor"]
[WhiteFideId "24173770"]
[BlackFideId "14110270"]
[WhiteElo "2533"]
[BlackElo "2394"]
[Result "1-0"]
[Round "4"]
[TimeControl "180+1"]
[Date "2023.11.07"]
[WhiteClock "0:01:03"]
[BlackClock "0:00:00"]
[Board "151"]

1. Nf3 {[%clk 0:02:52]}  c5 {[%clk 0:02:58]} 2. b3 {[%clk 0:02:53]}  d5 {[%clk 0:02:51]} 3. Bb2 {[%clk 0:02:54]}  Nf6 {[%clk 0:02:52]} 4. e3 {[%clk 0:02:53]}  e6 {[%clk 0:02:52]} 5. d4 {[%clk 0:02:53]}  Be7 {[%clk 0:02:48]} 6. Bb5+ {[%clk 0:02:53]}  Bd7 {[%clk 0:02:48]} 7. Bd3 {[%clk 0:02:49]}  O-O {[%clk 0:02:44]} 8. O-O {[%clk 0:02:49]}  Nc6 {[%clk 0:02:43]} 9. Nbd2 {[%clk 0:02:48]}  Rc8 {[%clk 0:02:38]} 10. c4 {[%clk 0:02:46]}  cxd4 {[%clk 0:02:29]} 11. exd4 {[%clk 0:02:45]}  dxc4 {[%clk 0:02:25]} 12. bxc4 {[%clk 0:02:44]}  b6 {[%clk 0:02:19]} 13. Rc1 {[%clk 0:02:42]}  h6 {[%clk 0:01:45]} 14. Qe2 {[%clk 0:02:41]}  Qc7 {[%clk 0:01:43]} 15. Rfd1 {[%clk 0:02:41]}  Rfd8 {[%clk 0:01:43]} 16. Ne4 {[%clk 0:02:41]}  Qb7 {[%clk 0:01:37]} 17. h3 {[%clk 0:02:33]}  Be8 {[%clk 0:01:37]} 18. Bb1 {[%clk 0:02:27]}  Na5 {[%clk 0:01:19]} 19. d5 {[%clk 0:02:10]}  exd5 {[%clk 0:00:51]} 20. Nxf6+ {[%clk 0:02:10]}  Bxf6 {[%clk 0:00:52]} 21. Bxf6 {[%clk 0:02:09]}  gxf6 {[%clk 0:00:53]} 22. Qd3 {[%clk 0:01:43]}  Nxc4 {[%clk 0:00:18]} 23. Qh7+ {[%clk 0:01:42]}  Kf8 {[%clk 0:00:19]} 24. Re1 {[%clk 0:01:31]}  Ne5 {[%clk 0:00:19]} 25. Rxc8 {[%clk 0:01:28]}  Rxc8 {[%clk 0:00:18]} 26. Nxe5 {[%clk 0:01:24]}  fxe5 {[%clk 0:00:18]} 27. Qh8+ {[%clk 0:01:14]}  Ke7 {[%clk 0:00:18]} 28. Qxe5+ {[%clk 0:01:15]}  Kd8 {[%clk 0:00:04]} 29. Qxe8+ {[%clk 0:01:15]}  Kc7 {[%clk 0:00:05]} 30. Qe5+ {[%clk 0:01:10]}  Kc6 {[%clk 0:00:04]} 31. Rc1+ {[%clk 0:01:07]}  Kb5 {[%clk 0:00:04]} 32. Bd3+ {[%clk 0:01:07]}  Ka5 {[%clk 0:00:02]} 33. Qe1+ {[%clk 0:01:06]}  Ka4 {[%clk 0:00:00]} 34. Rb1 {[%clk 0:01:03]} 1-0


[Site "https://www.chess.com"]

[Event "Titled Tuesday Blitz November 07 Early 2023"]
[White "Juicy_Fork"]
[Black "Ben Artzi, Ido"]
[BlackFideId "2810913"]
[WhiteElo "2389"]
[BlackElo "2524"]
[Result "0-1"]
[Round "4"]
[TimeControl "180+1"]
[Date "2023.11.07"]
[WhiteClock "0:00:01"]
[BlackClock "0:00:10"]
[Board "153"]

1. e4 {[%clk 0:03:00]}  e5 {[%clk 0:02:59]} 2. Nf3 {[%clk 0:02:57]}  Nc6 {[%clk 0:02:59]} 3. Bb5 {[%clk 0:02:54]}  a6 {[%clk 0:02:58]} 4. Ba4 {[%clk 0:02:51]}  Nf6 {[%clk 0:02:58]} 5. O-O {[%clk 0:02:48]}  Be7 {[%clk 0:02:59]} 6. Re1 {[%clk 0:02:47]}  b5 {[%clk 0:02:57]} 7. Bb3 {[%clk 0:02:46]}  d6 {[%clk 0:02:58]} 8. c3 {[%clk 0:02:46]}  O-O {[%clk 0:02:58]} 9. h3 {[%clk 0:02:46]}  Nb8 {[%clk 0:02:58]} 10. d4 {[%clk 0:02:46]}  Nbd7 {[%clk 0:02:58]} 11. Nbd2 {[%clk 0:02:47]}  Bb7 {[%clk 0:02:59]} 12. Bc2 {[%clk 0:02:47]}  Re8 {[%clk 0:02:59]} 13. Nf1 {[%clk 0:02:48]}  Bf8 {[%clk 0:03:00]} 14. Ng3 {[%clk 0:02:49]}  g6 {[%clk 0:03:00]} 15. Bd2 {[%clk 0:02:49]}  Bg7 {[%clk 0:02:55]} 16. Qc1 {[%clk 0:02:49]}  d5 {[%clk 0:02:29]} 17. dxe5 {[%clk 0:02:43]}  Nxe4 {[%clk 0:02:28]} 18. Nxe4 {[%clk 0:02:39]}  dxe4 {[%clk 0:02:29]} 19. Bxe4 {[%clk 0:02:36]}  Bxe4 {[%clk 0:02:29]} 20. Rxe4 {[%clk 0:02:37]}  Nxe5 {[%clk 0:02:21]} 21. Nxe5 {[%clk 0:02:35]}  Bxe5 {[%clk 0:02:18]} 22. Re1 {[%clk 0:02:21]}  Qd3 {[%clk 0:02:14]} 23. Bf4 {[%clk 0:02:15]}  f6 {[%clk 0:01:43]} 24. Bxe5 {[%clk 0:02:08]}  Rxe5 {[%clk 0:01:35]} 25. Qf4 {[%clk 0:02:06]}  Rae8 {[%clk 0:01:30]} 26. Red1 {[%clk 0:01:57]}  Qf5 {[%clk 0:01:27]} 27. Qxf5 {[%clk 0:01:53]}  Rxf5 {[%clk 0:01:27]} 28. Kf1 {[%clk 0:01:46]}  Re7 {[%clk 0:01:24]} 29. Rd8+ {[%clk 0:01:38]}  Kf7 {[%clk 0:01:21]} 30. Rad1 {[%clk 0:01:35]}  Rfe5 {[%clk 0:01:16]} 31. g3 {[%clk 0:01:28]}  Re2 {[%clk 0:01:13]} 32. R8d2 {[%clk 0:01:11]}  R2e4 {[%clk 0:01:12]} 33. Kg2 {[%clk 0:01:06]}  f5 {[%clk 0:01:11]} 34. Kf3 {[%clk 0:01:04]}  g5 {[%clk 0:01:02]} 35. Rd5 {[%clk 0:00:58]}  Kf6 {[%clk 0:00:55]} 36. R1d2 {[%clk 0:00:53]}  h5 {[%clk 0:00:50]} 37. Rd8 {[%clk 0:00:51]}  g4+ {[%clk 0:00:50]} 38. Kg2 {[%clk 0:00:49]}  Re2 {[%clk 0:00:47]} 39. Kf1 {[%clk 0:00:48]}  Re1+ {[%clk 0:00:41]} 40. Kg2 {[%clk 0:00:48]}  Ra1 {[%clk 0:00:41]} 41. hxg4 {[%clk 0:00:48]}  hxg4 {[%clk 0:00:41]} 42. Rf8+ {[%clk 0:00:39]}  Kg6 {[%clk 0:00:40]} 43. Rg8+ {[%clk 0:00:28]}  Kf6 {[%clk 0:00:19]} 44. Rf8+ {[%clk 0:00:26]}  Kg6 {[%clk 0:00:14]} 45. Rg8+ {[%clk 0:00:26]}  Rg7 {[%clk 0:00:11]} 46. Rxg7+ {[%clk 0:00:25]}  Kxg7 {[%clk 0:00:12]} 47. a3 {[%clk 0:00:23]}  Rb1 {[%clk 0:00:10]} 48. Rd7+ {[%clk 0:00:23]}  Kf6 {[%clk 0:00:10]} 49. Rxc7 {[%clk 0:00:23]}  Rxb2 {[%clk 0:00:09]} 50. Rc6+ {[%clk 0:00:22]}  Ke5 {[%clk 0:00:10]} 51. Rxa6 {[%clk 0:00:22]}  Rb3 {[%clk 0:00:09]} 52. Ra5 {[%clk 0:00:20]}  Ke4 {[%clk 0:00:08]} 53. a4 {[%clk 0:00:19]}  bxa4 {[%clk 0:00:08]} 54. Rxa4+ {[%clk 0:00:19]}  Ke5 {[%clk 0:00:07]} 55. Rc4 {[%clk 0:00:18]}  Kd5 {[%clk 0:00:06]} 56. Rc8 {[%clk 0:00:17]}  Ke5 {[%clk 0:00:06]} 57. c4 {[%clk 0:00:17]}  Rc3 {[%clk 0:00:07]} 58. Kf1 {[%clk 0:00:14]}  Kd4 {[%clk 0:00:06]} 59. Rf8 {[%clk 0:00:08]}  Ke5 {[%clk 0:00:06]} 60. Re8+ {[%clk 0:00:05]}  Kd4 {[%clk 0:00:04]} 61. Rf8 {[%clk 0:00:03]}  Ke5 {[%clk 0:00:04]} 62. Rc8 {[%clk 0:00:03]}  Kd4 {[%clk 0:00:04]} 63. Ke2 {[%clk 0:00:04]}  Rc2+ {[%clk 0:00:03]} 64. Ke1 {[%clk 0:00:03]}  Rxc4 {[%clk 0:00:04]} 65. Rd8+ {[%clk 0:00:02]}  Ke4 {[%clk 0:00:04]} 66. Re8+ {[%clk 0:00:03]}  Kf3 {[%clk 0:00:04]} 67. Re3+ {[%clk 0:00:03]}  Kg2 {[%clk 0:00:04]} 68. Re2 {[%clk 0:00:03]}  Rc1+ {[%clk 0:00:03]} 69. Kd2 {[%clk 0:00:03]}  Rf1 {[%clk 0:00:04]} 70. Ke3 {[%clk 0:00:04]}  Kg1 {[%clk 0:00:04]} 71. Rd2 {[%clk 0:00:03]}  Kg2 {[%clk 0:00:04]} 72. Re2 {[%clk 0:00:01]}  Kg1 {[%clk 0:00:04]} 73. Rd2 {[%clk 0:00:02]}  Kg2 {[%clk 0:00:05]} 74. Rc2 {[%clk 0:00:02]}  Re1+ {[%clk 0:00:05]} 75. Re2 {[%clk 0:00:02]}  Rxe2+ {[%clk 0:00:05]} 76. Kxe2 {[%clk 0:00:03]}  Kg1 {[%clk 0:00:05]} 77. Ke3 {[%clk 0:00:03]}  Kf1 {[%clk 0:00:06]} 78. f3 {[%clk 0:00:03]}  Kg2 {[%clk 0:00:06]} 79. fxg4 {[%clk 0:00:02]}  fxg4 {[%clk 0:00:06]} 80. Kf4 {[%clk 0:00:02]}  Kh3 {[%clk 0:00:07]} 81. Ke4 {[%clk 0:00:01]}  Kxg3 {[%clk 0:00:08]} 82. Ke3 {[%clk 0:00:02]}  Kh2 {[%clk 0:00:08]} 83. Kf2 {[%clk 0:00:03]}  g3+ {[%clk 0:00:09]} 84. Kf3 {[%clk 0:00:01]}  g2 {[%clk 0:00:10]} 0-1


[Site "https://www.chess.com"]

[Event "Titled Tuesday Blitz November 07 Early 2023"]
[White "Manukyan, Artyom"]
[Black "Dwilewicz, Katarzyna"]
[WhiteFideId "13305786"]
[BlackFideId "1148486"]
[WhiteElo "2522"]
[BlackElo "2384"]
[Result "1-0"]
[Round "4"]
[TimeControl "180+1"]
[Date "2023.11.07"]
[WhiteClock "0:00:39"]
[BlackClock "0:00:01"]
[Board "155"]

1. e4 {[%clk 0:02:58]}  c5 {[%clk 0:02:59]} 2. c3 {[%clk 0:02:56]}  g6 {[%clk 0:02:57]} 3. d4 {[%clk 0:02:56]}  cxd4 {[%clk 0:02:57]} 4. cxd4 {[%clk 0:02:57]}  Bg7 {[%clk 0:02:57]} 5. Nc3 {[%clk 0:02:57]}  d6 {[%clk 0:02:56]} 6. h3 {[%clk 0:02:57]}  Nc6 {[%clk 0:02:56]} 7. Nf3 {[%clk 0:02:58]}  Nf6 {[%clk 0:02:50]} 8. Be3 {[%clk 0:02:57]}  O-O {[%clk 0:02:50]} 9. Bd3 {[%clk 0:02:56]}  a6 {[%clk 0:02:49]} 10. O-O {[%clk 0:02:56]}  b5 {[%clk 0:02:48]} 11. a3 {[%clk 0:02:56]}  Bb7 {[%clk 0:02:47]} 12. Qd2 {[%clk 0:02:57]}  Rc8 {[%clk 0:02:40]} 13. Bh6 {[%clk 0:02:55]}  Na5 {[%clk 0:02:36]} 14. Bxg7 {[%clk 0:02:42]}  Kxg7 {[%clk 0:02:35]} 15. Rad1 {[%clk 0:02:39]}  Nc4 {[%clk 0:02:33]} 16. Qe2 {[%clk 0:02:35]}  Nxa3 {[%clk 0:02:25]} 17. e5 {[%clk 0:02:36]}  Nh5 {[%clk 0:02:14]} 18. Be4 {[%clk 0:02:16]}  Bxe4 {[%clk 0:01:56]} 19. Qxe4 {[%clk 0:02:17]}  f5 {[%clk 0:01:44]} 20. exf6+ {[%clk 0:02:03]}  Nxf6 {[%clk 0:01:43]} 21. Qe2 {[%clk 0:01:53]}  Nc4 {[%clk 0:01:40]} 22. Ng5 {[%clk 0:01:53]}  Qd7 {[%clk 0:01:25]} 23. Ne6+ {[%clk 0:01:50]}  Kf7 {[%clk 0:01:24]} 24. Nxf8 {[%clk 0:01:51]}  Kxf8 {[%clk 0:01:22]} 25. b3 {[%clk 0:01:48]}  Na5 {[%clk 0:01:19]} 26. Ne4 {[%clk 0:01:45]}  Qe6 {[%clk 0:01:10]} 27. Qe1 {[%clk 0:01:28]}  Nxb3 {[%clk 0:01:01]} 28. Nxf6 {[%clk 0:01:27]}  Qxe1 {[%clk 0:00:48]} 29. Nxh7+ {[%clk 0:01:26]}  Kg7 {[%clk 0:00:47]} 30. Rfxe1 {[%clk 0:01:27]}  Kxh7 {[%clk 0:00:41]} 31. Rxe7+ {[%clk 0:01:27]}  Kh6 {[%clk 0:00:42]} 32. Rb7 {[%clk 0:01:19]}  Rc6 {[%clk 0:00:34]} 33. h4 {[%clk 0:01:17]}  Rc4 {[%clk 0:00:27]} 34. Re1 {[%clk 0:01:07]}  Nxd4 {[%clk 0:00:24]} 35. Ree7 {[%clk 0:01:05]}  Kh5 {[%clk 0:00:21]} 36. Rh7+ {[%clk 0:00:55]}  Kg4 {[%clk 0:00:21]} 37. Rbf7 {[%clk 0:00:47]}  Nf5 {[%clk 0:00:12]} 38. g3 {[%clk 0:00:42]}  Kf3 {[%clk 0:00:11]} 39. h5 {[%clk 0:00:40]}  Rc1+ {[%clk 0:00:10]} 40. Kh2 {[%clk 0:00:40]}  Kxf2 {[%clk 0:00:04]} 41. hxg6 {[%clk 0:00:40]}  Ke3 {[%clk 0:00:01]} 42. Rxf5 {[%clk 0:00:39]} 1-0


[Site "https://www.chess.com"]

[Event "Titled Tuesday Blitz November 07 Early 2023"]
[White "Pham, Le Thao Nguyen"]
[Black "Corredor Castellanos, Camilo"]
[WhiteFideId "12401226"]
[BlackFideId "4425871"]
[WhiteElo "2522"]
[BlackElo "2368"]
[Result "1-0"]
[Round "4"]
[TimeControl "180+1"]
[Date "2023.11.07"]
[WhiteClock "0:01:56"]
[BlackClock "0:01:36"]
[Board "157"]

1. d4 {[%clk 0:03:00]}  Nf6 {[%clk 0:02:59]} 2. Nf3 {[%clk 0:02:55]}  e6 {[%clk 0:02:57]} 3. Bf4 {[%clk 0:02:55]}  c5 {[%clk 0:02:57]} 4. e3 {[%clk 0:02:54]}  Nc6 {[%clk 0:02:55]} 5. c3 {[%clk 0:02:54]}  d5 {[%clk 0:02:54]} 6. Nbd2 {[%clk 0:02:55]}  cxd4 {[%clk 0:02:52]} 7. exd4 {[%clk 0:02:54]}  Bd6 {[%clk 0:02:51]} 8. Bg3 {[%clk 0:02:48]}  O-O {[%clk 0:02:42]} 9. Bd3 {[%clk 0:02:44]}  Qc7 {[%clk 0:02:42]} 10. Qe2 {[%clk 0:02:41]}  e5 {[%clk 0:02:35]} 11. dxe5 {[%clk 0:02:32]}  Re8 {[%clk 0:02:30]} 12. Bb5 {[%clk 0:02:13]}  Bg4 {[%clk 0:02:24]} 13. Bxc6 {[%clk 0:02:11]}  bxc6 {[%clk 0:02:22]} 14. O-O {[%clk 0:02:08]}  Qd7 {[%clk 0:01:36]} 15. Qa6 {[%clk 0:01:56]} 1-0


[Site "https://www.chess.com"]

[Event "Titled Tuesday Blitz November 07 Early 2023"]
[White "Vigoa Apecheche, Yanira"]
[Black "Toktomushev, Teimur"]
[WhiteFideId "3507041"]
[BlackFideId "14176726"]
[WhiteElo "2363"]
[BlackElo "2520"]
[Result "0-1"]
[Round "4"]
[TimeControl "180+1"]
[Date "2023.11.07"]
[WhiteClock "0:00:28"]
[BlackClock "0:00:06"]
[Board "158"]

1. d4 {[%clk 0:03:00]}  d5 {[%clk 0:02:59]} 2. Nf3 {[%clk 0:03:00]}  Nf6 {[%clk 0:02:59]} 3. c4 {[%clk 0:02:58]}  e6 {[%clk 0:02:59]} 4. Nc3 {[%clk 0:02:57]}  Be7 {[%clk 0:02:59]} 5. Bg5 {[%clk 0:02:53]}  O-O {[%clk 0:02:58]} 6. e3 {[%clk 0:02:52]}  h6 {[%clk 0:02:58]} 7. Bxf6 {[%clk 0:02:52]}  Bxf6 {[%clk 0:02:59]} 8. cxd5 {[%clk 0:02:52]}  exd5 {[%clk 0:02:58]} 9. b4 {[%clk 0:02:51]}  c6 {[%clk 0:02:21]} 10. Bd3 {[%clk 0:02:47]}  a5 {[%clk 0:02:21]} 11. a3 {[%clk 0:02:42]}  Nd7 {[%clk 0:02:03]} 12. O-O {[%clk 0:02:37]}  b5 {[%clk 0:01:59]} 13. Rc1 {[%clk 0:02:29]}  Nb6 {[%clk 0:01:58]} 14. e4 {[%clk 0:02:18]}  Bg4 {[%clk 0:01:47]} 15. e5 {[%clk 0:02:02]}  Be7 {[%clk 0:01:41]} 16. Ne2 {[%clk 0:01:54]}  Nc4 {[%clk 0:01:21]} 17. Bxc4 {[%clk 0:01:39]}  bxc4 {[%clk 0:01:12]} 18. Rb1 {[%clk 0:01:30]}  axb4 {[%clk 0:00:50]} 19. axb4 {[%clk 0:01:30]}  Qd7 {[%clk 0:00:40]} 20. Ne1 {[%clk 0:01:11]}  Rfb8 {[%clk 0:00:37]} 21. Nc2 {[%clk 0:00:59]}  Bf5 {[%clk 0:00:22]} 22. Rb2 {[%clk 0:00:57]}  Bxc2 {[%clk 0:00:19]} 23. Qxc2 {[%clk 0:00:57]}  Rxb4 {[%clk 0:00:20]} 24. Rxb4 {[%clk 0:00:56]}  Bxb4 {[%clk 0:00:21]} 25. Rb1 {[%clk 0:00:56]}  c5 {[%clk 0:00:16]} 26. Nf4 {[%clk 0:00:54]}  Qa4 {[%clk 0:00:03]} 27. Qxa4 {[%clk 0:00:50]}  Rxa4 {[%clk 0:00:04]} 28. Nxd5 {[%clk 0:00:50]}  c3 {[%clk 0:00:04]} 29. dxc5 {[%clk 0:00:47]}  c2 {[%clk 0:00:03]} 30. Rc1 {[%clk 0:00:47]}  Bd2 {[%clk 0:00:03]} 31. c6 {[%clk 0:00:39]}  Bxc1 {[%clk 0:00:02]} 32. c7 {[%clk 0:00:39]}  Rc4 {[%clk 0:00:02]} 33. f4 {[%clk 0:00:35]}  Bb2 {[%clk 0:00:02]} 34. Kf2 {[%clk 0:00:30]}  c1=Q {[%clk 0:00:02]} 35. Ne7+ {[%clk 0:00:30]}  Kf8 {[%clk 0:00:02]} 36. c8=Q+ {[%clk 0:00:30]}  Rxc8 {[%clk 0:00:02]} 37. Nxc8 {[%clk 0:00:31]}  Qxc8 {[%clk 0:00:02]} 38. h3 {[%clk 0:00:31]}  Qc5+ {[%clk 0:00:03]} 39. Kf3 {[%clk 0:00:31]}  Bxe5 {[%clk 0:00:04]} 40. fxe5 {[%clk 0:00:30]}  Qxe5 {[%clk 0:00:05]} 41. g3 {[%clk 0:00:31]}  f5 {[%clk 0:00:05]} 42. h4 {[%clk 0:00:28]}  Qe4+ {[%clk 0:00:06]} 0-1


[Site "https://www.chess.com"]

[Event "Titled Tuesday Blitz November 07 Early 2023"]
[White "Kujawski, Adam"]
[Black "Doctor_Luber"]
[WhiteFideId "1100920"]
[WhiteElo "2344"]
[BlackElo "2514"]
[Result "1-0"]
[Round "4"]
[TimeControl "180+1"]
[Date "2023.11.07"]
[WhiteClock "0:00:08"]
[BlackClock "0:00:14"]
[Board "162"]

1. e4 {[%clk 0:02:59]}  c6 {[%clk 0:02:58]} 2. d4 {[%clk 0:02:58]}  d5 {[%clk 0:02:59]} 3. f3 {[%clk 0:02:57]}  e6 {[%clk 0:02:58]} 4. Nc3 {[%clk 0:02:57]}  Qb6 {[%clk 0:02:56]} 5. a3 {[%clk 0:02:54]}  g6 {[%clk 0:02:32]} 6. Be3 {[%clk 0:02:49]}  Bg7 {[%clk 0:02:32]} 7. e5 {[%clk 0:02:46]}  Bxe5 {[%clk 0:02:28]} 8. Qd2 {[%clk 0:02:39]}  Bg7 {[%clk 0:02:21]} 9. O-O-O {[%clk 0:02:39]}  Nd7 {[%clk 0:02:20]} 10. h4 {[%clk 0:02:39]}  h5 {[%clk 0:02:20]} 11. Nh3 {[%clk 0:02:39]}  Ngf6 {[%clk 0:02:19]} 12. Ng5 {[%clk 0:02:38]}  Qd8 {[%clk 0:02:15]} 13. Kb1 {[%clk 0:02:28]}  Qe7 {[%clk 0:02:15]} 14. Be2 {[%clk 0:02:25]}  b6 {[%clk 0:02:15]} 15. Bf4 {[%clk 0:02:11]}  Bb7 {[%clk 0:02:12]} 16. g4 {[%clk 0:01:58]}  hxg4 {[%clk 0:02:09]} 17. fxg4 {[%clk 0:01:58]}  e5 {[%clk 0:02:01]} 18. dxe5 {[%clk 0:01:49]}  Nxe5 {[%clk 0:02:02]} 19. Rde1 {[%clk 0:01:42]}  Ne4 {[%clk 0:01:34]} 20. Ncxe4 {[%clk 0:01:20]}  dxe4 {[%clk 0:01:35]} 21. Nxe4 {[%clk 0:00:45]}  Rd8 {[%clk 0:01:33]} 22. Bd3 {[%clk 0:00:30]}  Kf8 {[%clk 0:01:22]} 23. Bg5 {[%clk 0:00:29]}  Qd7 {[%clk 0:01:15]} 24. Nf6 {[%clk 0:00:22]}  Qd4 {[%clk 0:01:08]} 25. Rhf1 {[%clk 0:00:16]}  c5 {[%clk 0:01:05]} 26. Qe2 {[%clk 0:00:12]}  Qd6 {[%clk 0:00:45]} 27. Qxe5 {[%clk 0:00:11]}  Qxe5 {[%clk 0:00:45]} 28. Rxe5 {[%clk 0:00:12]}  Bg2 {[%clk 0:00:38]} 29. Rfe1 {[%clk 0:00:12]}  Bc6 {[%clk 0:00:33]} 30. Re7 {[%clk 0:00:11]}  a5 {[%clk 0:00:31]} 31. Bc4 {[%clk 0:00:10]}  Bxf6 {[%clk 0:00:27]} 32. Bxf6 {[%clk 0:00:10]}  Rh7 {[%clk 0:00:28]} 33. Rc7 {[%clk 0:00:09]}  Be8 {[%clk 0:00:14]} 34. Bxd8 {[%clk 0:00:08]} 1-0


[Site "https://www.chess.com"]